fUST/lending_fUST_20250705
["ID","MTS","AMOUNT","RATE_DAILY","PERIOD"]
[369770451,1751722263455,-1403.04,0.00021369,2]
[369770452,1751722263465,-641.04,0.00021369,2]
[369770453,1751722263475,-460.0,0.00021369,2]
[369770454,1751722263484,-1468.55,0.00021369,2]
[369770455,1751722263494,-460.0,0.00021369,2]
[369770456,1751722263504,-3916.41,0.00021369,2]
[369770457,1751722263514,-648.75,0.00021369,2]
[369770458,1751722263527,-828.08,0.00021369,2]
[369770459,1751722263537,-670.49,0.00021369,2]
[369770460,1751722263548,-510.5,0.00021369,2]
[369770461,1751722263558,-460.0,0.00021369,2]
[369770462,1751722263568,-1415.35,0.00021369,2]
[369770463,1751722263578,-1243.88,0.00021369,2]
[369770464,1751722263588,-460.0,0.00021369,2]
[369770465,1751722263598,-151.0,0.00021369,2]
[369770466,1751722263610,-618.51,0.00021369,2]
[369770467,1751722263620,-460.0,0.00021369,2]
[369770468,1751722263631,-3935.55,0.00021369,2]
[369770469,1751722263641,-667.64,0.00021369,2]
[369770470,1751722263651,-186.066806,0.00021369,2]
[369770471,1751722263662,-460.0,0.00021369,2]
[369770472,1751722263673,-186.066806,0.00021369,2]
[369770473,1751722263683,-1062.87,0.00021369,2]
[369770474,1751722263694,-507.36,0.00021369,2]
[369770475,1751722263704,-460.0,0.00021369,2]
[369770476,1751722263714,-3292.21,0.00021369,2]
[369770477,1751722263723,-460.0,0.00021369,2]
[369770478,1751722263733,-513.85,0.00021369,2]
[369770479,1751722263743,-1000.0,0.000214,2]
[369770480,1751722263753,-5054.74311718,0.00021408,2]
[369770481,1751722263763,-587.0,0.00021428,2]
[369770482,1751722263773,-151.0,0.00021444,5]
[369770483,1751722263783,-241.973278,0.00021448,2]
[369770484,1751722263793,-500.0,0.00021504,2]
[369770485,1751722263802,-500.0,0.00021504,2]
[369770486,1751722263812,-500.0,0.00021504,2]
[369770487,1751722263822,-476.0,0.00021519,2]
[369770488,1751722263832,-157.9142363,0.00021529,2]
[369770489,1751722263842,-500.0,0.00021529,2]
[369770490,1751722263852,-500.0,0.00021529,2]
[369770491,1751722263862,-500.0,0.00021529,2]
[369770492,1751722263872,-520.54352268,0.00021529,2]
[369770493,1751722263882,-169.99279489,0.00021534,2]
[369770494,1751722263892,-241.973278,0.00021544,2]
[369770495,1751722263902,-500.0,0.0002155,2]
[369770496,1751722263911,-500.0,0.0002155,2]
[369770497,1751722263921,-232.17415268,0.00021555,5]
[369770498,1751722263931,-600.0,0.0002159,2]
[369770499,1751722263941,-2000.0,0.00021616,2]
[369770500,1751722263950,-2000.0,0.00021616,2]
[369770501,1751722263961,-2400.0,0.00021616,2]
[369770502,1751722263970,-2000.0,0.00021616,2]
[369770503,1751722263980,-2000.0,0.00021616,2]
[369770504,1751722263990,-241.973278,0.0002164,2]
[369770505,1751722264000,-500.0,0.00021642,10]
[369770506,1751722264009,-460.0,0.00021643,2]
[369770507,1751722264019,-460.0,0.00021643,2]
[369770508,1751722264029,-460.0,0.00021643,2]
[369770509,1751722264038,-475.96,0.00021643,2]
[369770510,1751722264048,-460.0,0.00021643,2]
[369770511,1751722264057,-520.9,0.00021643,2]
[369770512,1751722264067,-460.0,0.00021643,2]
[369770513,1751722264077,-460.0,0.00021643,2]
[369770514,1751722264086,-460.0,0.00021643,2]
[369770515,1751722264096,-151.0,0.00021643,2]
[369770516,1751722264105,-151.0,0.00021643,2]
[369770517,1751722264115,-460.0,0.00021643,2]
[369770518,1751722264125,-737.14,0.00021643,2]
[369770519,1751722264134,-460.0,0.00021643,2]
[369770520,1751722264144,-530.30349824,0.00021643,2]
[369770521,1751722264154,-506.75,0.00021643,2]
[369770522,1751722264164,-460.0,0.00021643,2]
[369770523,1751722264173,-460.0,0.00021643,2]
[369770524,1751722264183,-460.0,0.00021643,2]
[369770525,1751722264193,-460.0,0.00021643,2]
[369770526,1751722264202,-273.43986,0.00021643,2]
[369770527,1751722264212,-460.0,0.00021643,2]
[369770528,1751722264222,-460.0,0.00021643,2]
[369770529,1751722264232,-460.0,0.00021643,2]
[369770530,1751722264242,-151.0,0.00021643,2]
[369770531,1751722264252,-245.81732415,0.00021643,2]
[369770532,1751722264262,-489.23,0.00021643,2]
[369770533,1751722264272,-460.0,0.00021643,2]
[369770534,1751722264281,-460.0,0.00021643,2]
[369770535,1751722264290,-1288.64,0.00021643,2]
[369770536,1751722264300,-460.0,0.00021643,2]
[369770537,1751722264309,-460.0,0.00021643,2]
[369770538,1751722264319,-460.0,0.00021643,2]
[369770539,1751722264329,-460.0,0.00021643,2]
[369770540,1751722264339,-460.0,0.00021643,2]
[369770541,1751722264350,-460.0,0.00021643,2]
[369770542,1751722264360,-460.0,0.00021643,2]
[369770543,1751722264370,-460.0,0.00021643,2]
[369770544,1751722264380,-572.67,0.00021643,2]
[369770545,1751722264390,-460.0,0.00021643,2]
[369770546,1751722264400,-422.72917488,0.00021643,2]
[369770547,1751722264410,-620.48,0.00021643,2]
[369770548,1751722264420,-519.51,0.00021643,2]
[369770549,1751722264430,-460.0,0.00021643,2]
[369770550,1751722264440,-460.0,0.00021643,2]
[369770551,1751722264450,-460.0,0.00021643,2]
[369770552,1751722264460,-1011.25,0.00021643,2]
[369770553,1751722264470,-460.0,0.00021643,2]
[369770554,1751722264480,-460.0,0.00021643,2]
[369770555,1751722264490,-460.0,0.00021643,2]
[369770556,1751722264501,-460.0,0.00021643,2]
[369770557,1751722264511,-460.0,0.00021643,2]
[369770558,1751722264521,-423.79949101,0.00021643,2]
[369770559,1751722264535,-917.61,0.00021643,2]
[369770560,1751722264546,-607.25,0.00021643,2]
[369770561,1751722264556,-614.63,0.00021643,2]
[369770562,1751722264566,-460.0,0.00021643,2]
[369770563,1751722264576,-541.09,0.00021643,2]
[369770564,1751722264586,-328.87,0.00021643,2]
[369770565,1751722264596,-4405.57,0.00021643,2]
[369770566,1751722264606,-460.0,0.00021643,2]
[369770567,1751722264617,-151.0,0.00021643,2]
[369770568,1751722264628,-712.65,0.00021643,2]
[369770569,1751722264638,-151.0,0.00021643,2]
[369770570,1751722264648,-460.0,0.00021643,2]
[369770571,1751722264658,-460.0,0.00021643,2]
[369770572,1751722264668,-460.0,0.00021643,2]
[369770573,1751722264678,-527.23,0.00021643,2]
[369770574,1751722264688,-151.0,0.00021643,2]
[369770575,1751722264698,-739.98,0.00021643,2]
[369770576,1751722264710,-485.28,0.00021643,2]
[369770577,1751722264720,-485.28,0.00021643,2]
[369770578,1751722264730,-151.0,0.00021643,2]
[369770579,1751722264741,-2002.42,0.00021643,2]
[369770580,1751722264750,-569.89,0.00021643,2]
[369770581,1751722264761,-1763.37,0.00021643,2]
[369770582,1751722264770,-460.0,0.00021643,2]
[369770583,1751722264780,-3593.24,0.00021643,2]
[369770584,1751722264790,-460.0,0.00021643,2]
[369770585,1751722264800,-460.0,0.00021643,2]
[369770586,1751722264810,-817.0,0.00021643,2]
[369770587,1751722264820,-628.33,0.00021643,2]
[369770588,1751722264832,-976.22,0.00021643,2]
[369770589,1751722264843,-460.0,0.00021643,2]
[369770590,1751722264853,-460.0,0.00021643,2]
[369770591,1751722264863,-460.0,0.00021643,2]
[369770592,1751722264874,-460.0,0.00021643,2]
[369770593,1751722264884,-1540.91,0.00021643,2]
[369770594,1751722264894,-2162.68,0.00021643,2]
[369770595,1751722264905,-532.9,0.00021643,2]
[369770596,1751722264915,-460.0,0.00021643,2]
[369770597,1751722264925,-6246.0,0.00021643,2]
[369770598,1751722264935,-460.0,0.00021643,2]
[369770599,1751722264945,-512.79,0.00021643,2]
[369770600,1751722264955,-460.0,0.00021643,2]
[369770601,1751722264965,-460.0,0.00021643,2]
[369770602,1751722264974,-460.0,0.00021643,2]
[369770603,1751722264984,-8650.73,0.00021643,2]
[369770604,1751722264995,-923.59,0.00021643,2]
[369770605,1751722265005,-460.0,0.00021643,2]
[369770606,1751722265015,-644.54,0.00021643,2]
[369770607,1751722265025,-1436.31,0.00021643,2]
[369770608,1751722265035,-515.17,0.00021643,2]
[369770609,1751722265046,-460.0,0.00021643,2]
[369770610,1751722265056,-788.88,0.00021643,2]
[369770611,1751722265065,-460.0,0.00021643,2]
[369770612,1751722265076,-2109.23,0.00021643,2]
[369770613,1751722265086,-1988.63,0.00021643,2]
[369770614,1751722265097,-460.0,0.00021643,2]
[369770615,1751722265315,-460.0,0.00021643,2]
[369770616,1751722265325,-1388.11,0.00021643,2]
[369770617,1751722265334,-460.0,0.00021643,2]
[369770618,1751722265344,-460.0,0.00021643,2]
[369770619,1751722265354,-460.0,0.00021643,2]
[369770620,1751722265365,-460.0,0.00021643,2]
[369770621,1751722265374,-463.27,0.00021643,2]
[369770622,1751722265383,-8374.38,0.00021643,2]
[369770623,1751722265393,-539.36549436,0.00021643,2]
[369770624,1751722265402,-2962.19,0.00021643,2]
[369770625,1751722265412,-460.0,0.00021643,2]
[369770626,1751722265421,-1198.59,0.00021643,2]
[369770627,1751722265433,-460.0,0.00021643,2]
[369770628,1751722265443,-460.0,0.00021643,2]
[369770629,1751722265453,-776.97,0.00021643,2]
[369770630,1751722265463,-460.0,0.00021643,2]
[369770631,1751722265473,-460.0,0.00021643,2]
[369770632,1751722265483,-460.0,0.00021643,2]
[369770633,1751722265492,-579.55,0.00021643,2]
[369770634,1751722265502,-460.0,0.00021643,2]
[369770635,1751722265511,-555.84,0.00021643,2]
[369770636,1751722265521,-555.80102156,0.00021643,2]
[369770637,1751722265532,-2095.61,0.00021643,2]
[369770638,1751722265544,-460.0,0.00021643,2]
[369770639,1751722265553,-460.0,0.00021643,2]
[369770640,1751722265563,-460.0,0.00021643,2]
[369770641,1751722265572,-1898.56,0.00021643,2]
[369770642,1751722265583,-460.0,0.00021643,2]
[369770643,1751722265593,-893.21,0.00021643,2]
[369770644,1751722265602,-3085.54316806,0.00021643,2]
[369770645,1751722265618,-922.44683194,0.00021643,2]
[369770646,1751722265629,-460.0,0.00021643,2]
[369770647,1751722265639,-5012.7,0.00021643,2]
[369770648,1751722265649,-460.0,0.00021643,2]
[369770649,1751722265658,-543.98693478,0.00021643,2]
[369770650,1751722265668,-460.0,0.00021643,2]
[369770651,1751722265677,-615.94,0.00021643,2]
[369770652,1751722265686,-951.9,0.00021643,2]
[369770653,1751722265696,-151.0,0.00021643,2]
[369770654,1751722265706,-460.0,0.00021643,2]
[369770655,1751722265716,-460.0,0.00021643,2]
[369770656,1751722265726,-460.0,0.00021643,2]
[369770657,1751722265735,-537.54,0.00021643,2]
[369770658,1751722265745,-6536.21,0.00021643,2]
[369770659,1751722265754,-460.0,0.00021643,2]
[369770660,1751722265763,-460.0,0.00021643,2]
[369770661,1751722265773,-1096.58,0.00021643,2]
[369770662,1751722265783,-460.0,0.00021643,2]
[369770663,1751722265792,-1375.12,0.00021643,2]
[369770664,1751722265802,-482.57,0.00021643,2]
[369770665,1751722265812,-941.2,0.00021643,2]
[369770666,1751722265821,-541.54,0.00021643,2]
[369770667,1751722265832,-1263.3,0.00021643,2]
[369770668,1751722265842,-1157.82,0.00021643,2]
[369770669,1751722265852,-460.0,0.00021643,2]
[369770670,1751722265862,-460.0,0.00021643,2]
[369770671,1751722265871,-460.0,0.00021643,2]
[369770672,1751722265881,-3019.38,0.00021643,2]
[369770673,1751722265891,-1058.72,0.00021643,2]
[369770674,1751722265901,-460.0,0.00021643,2]
[369770675,1751722265910,-512.71,0.00021643,2]
[369770676,1751722265920,-460.0,0.00021643,2]
[369770677,1751722265930,-2032.43,0.00021643,2]
[369770678,1751722265939,-585.28,0.00021643,2]
[369770679,1751722265950,-2923.56,0.00021643,2]
[369770680,1751722265959,-460.0,0.00021643,2]
[369770681,1751722265969,-652.84,0.00021643,2]
[369770682,1751722265980,-540.09,0.00021643,2]
[369770683,1751722265990,-1505.83,0.00021643,2]
[369770684,1751722266004,-1403.04,0.00021643,2]
[369770685,1751722266015,-460.0,0.00021643,2]
[369770686,1751722266025,-641.04,0.00021643,2]
[369770687,1751722266035,-1468.55,0.00021643,2]
[369770688,1751722266044,-460.0,0.00021643,2]
[369770689,1751722266055,-3916.41,0.00021643,2]
[369770690,1751722266064,-648.75,0.00021643,2]
[369770691,1751722266074,-828.08,0.00021643,2]
[369770692,1751722266084,-670.49,0.00021643,2]
[369770693,1751722266094,-510.5,0.00021643,2]
[369770694,1751722266103,-460.0,0.00021643,2]
[369770695,1751722266112,-1415.35,0.00021643,2]
[369770696,1751722266122,-1243.88,0.00021643,2]
[369770697,1751722266131,-460.0,0.00021643,2]
[369770698,1751722266140,-151.0,0.00021643,2]
[369770699,1751722266150,-618.51,0.00021643,2]
[369770700,1751722266159,-270.83884719,0.00021643,2]
[369770701,1751722266169,-3935.55,0.00021643,2]
[369770702,1751722266178,-151.0,0.00021643,2]
[369770703,1751722266187,-667.64,0.00021643,2]
[369770704,1751722266197,-151.0,0.00021643,2]
[369770705,1751722266207,-460.0,0.00021643,2]
[369770706,1751722266216,-507.36,0.00021643,2]
[369770707,1751722266226,-460.0,0.00021643,2]
[369770708,1751722266236,-1062.87,0.00021643,2]
[369770709,1751722266245,-3292.21,0.00021643,2]
[369770710,1751722266257,-460.0,0.00021643,2]
[369770711,1751722266267,-513.85,0.00021643,2]
[369770712,1751722266276,-5000.0,0.00021644,2]
[369770713,1751722266285,-5000.0,0.00021644,2]
[369770714,1751722266295,-5000.0,0.00021644,2]
[369770715,1751722266305,-151.0,0.00021655,5]
[369770716,1751722266315,-241.973278,0.00021737,2]
[369770717,1751722266324,-168.0,0.00021752,2]
[369770718,1751722266333,-232.17415268,0.00021762,5]
[369770719,1751722266343,-500.528,0.00021785,2]
[369770720,1751722266352,-2200.0,0.00021785,2]
[369770721,1751722266361,-4044.13,0.000218,2]
[369770722,1751722266371,-645.23067,0.00021815,2]
[369770723,1751722266380,-5054.74311718,0.00021822,2]
[369770724,1751722266389,-241.973278,0.00021833,2]
[369770725,1751722266412,-151.0,0.00021866,5]
[369770726,1751722266422,-151.0,0.000219,2]
[369770727,1751722266433,-1000.0,0.000219,2]
[369770728,1751722266442,-3000.0,0.00021912,2]
[369770729,1751722266452,-500.0,0.00021916,10]
[369770730,1751722266461,-460.0,0.00021917,2]
[369770731,1751722266471,-460.0,0.00021917,2]
[369770732,1751722266480,-460.0,0.00021917,2]
[369770733,1751722266489,-475.96,0.00021917,2]
[369770734,1751722266499,-460.0,0.00021917,2]
[369770735,1751722266508,-520.9,0.00021917,2]
[369770736,1751722266518,-460.0,0.00021917,2]
[369770737,1751722266527,-460.0,0.00021917,2]
[369770738,1751722266537,-551.62280033,0.00021917,2]
[369770739,1751722266549,-460.0,0.00021917,2]
[369770740,1751722266559,-737.14,0.00021917,2]
[369770741,1751722266569,-460.0,0.00021917,2]
[369770742,1751722266578,-506.75,0.00021917,2]
[369770743,1751722266588,-460.0,0.00021917,2]
[369770744,1751722266598,-460.0,0.00021917,2]
[369770745,1751722266607,-460.0,0.00021917,2]
[369770746,1751722266617,-460.0,0.00021917,2]
[369770747,1751722266626,-460.0,0.00021917,2]
[369770748,1751722266636,-487.9197298,0.00021917,2]
[369770749,1751722266645,-460.0,0.00021917,2]
[369770750,1751722266655,-489.23,0.00021917,2]
[369770751,1751722266664,-460.0,0.00021917,2]
[369770752,1751722266674,-460.0,0.00021917,2]
[369770753,1751722266683,-1288.64,0.00021917,2]
[369770754,1751722266692,-460.0,0.00021917,2]
[369770755,1751722266701,-460.0,0.00021917,2]
[369770756,1751722266711,-460.0,0.00021917,2]
[369770757,1751722266720,-460.0,0.00021917,2]
[369770758,1751722266730,-460.0,0.00021917,2]
[369770759,1751722266739,-460.0,0.00021917,2]
[369770760,1751722266749,-460.0,0.00021917,2]
[369770761,1751722266758,-900.339985,0.00021917,2]
[369770762,1751722266768,-900.339985,0.00021917,2]
[369770763,1751722266777,-460.0,0.00021917,2]
[369770764,1751722266787,-572.67,0.00021917,2]
[369770765,1751722266796,-460.0,0.00021917,2]
[369770766,1751722266805,-620.48,0.00021917,2]
[369770767,1751722266815,-519.51,0.00021917,2]
[369770768,1751722266824,-460.0,0.00021917,2]
[369770769,1751722266834,-460.0,0.00021917,2]
[369770770,1751722266843,-460.0,0.00021917,2]
[369770771,1751722266853,-1011.25,0.00021917,2]
[369770772,1751722266862,-460.0,0.00021917,2]
[369770773,1751722266872,-460.0,0.00021917,2]
[369770774,1751722266881,-460.0,0.00021917,2]
[369770775,1751722266890,-460.0,0.00021917,2]
[369770776,1751722266899,-460.0,0.00021917,2]
[369770777,1751722266908,-917.61,0.00021917,2]
[369770778,1751722266918,-607.25,0.00021917,2]
[369770779,1751722266927,-614.63,0.00021917,2]
[369770780,1751722266937,-460.0,0.00021917,2]
[369770781,1751722266946,-541.09,0.00021917,2]
[369770782,1751722266956,-4405.57,0.00021917,2]
[369770783,1751722266967,-460.0,0.00021917,2]
[369770784,1751722266977,-712.65,0.00021917,2]
[369770785,1751722266986,-460.0,0.00021917,2]
[369770786,1751722266995,-460.0,0.00021917,2]
[369770787,1751722267005,-460.0,0.00021917,2]
[369770788,1751722267015,-527.23,0.00021917,2]
[369770789,1751722267025,-739.98,0.00021917,2]
[369770790,1751722267035,-485.28,0.00021917,2]
[369770791,1751722267045,-485.28,0.00021917,2]
[369770792,1751722267055,-2002.42,0.00021917,2]
[369770793,1751722267065,-569.89,0.00021917,2]
[369770794,1751722267075,-1763.37,0.00021917,2]
[369770795,1751722267084,-460.0,0.00021917,2]
[369770796,1751722267094,-1403.79182353,0.00021917,2]
[369770797,1751722267108,-2189.44817647,0.00021917,2]
[369770798,1751722267117,-460.0,0.00021917,2]
[369770799,1751722267127,-460.0,0.00021917,2]
[369770800,1751722267136,-817.0,0.00021917,2]
[369770801,1751722267146,-628.33,0.00021917,2]
[369770802,1751722267155,-976.22,0.00021917,2]
[369770803,1751722267164,-151.0,0.00021917,2]
[369770804,1751722267173,-460.0,0.00021917,2]
[369770805,1751722267183,-151.0,0.00021917,2]
[369770806,1751722267192,-460.0,0.00021917,2]
[369770807,1751722267201,-460.0,0.00021917,2]
[369770808,1751722267210,-389.57011965,0.00021917,2]
[369770809,1751722267222,-70.42988035,0.00021917,2]
[369770810,1751722267231,-703.24021725,0.00021917,2]
[369770811,1751722267243,-837.66978275,0.00021917,2]
[369770812,1751722267253,-2162.68,0.00021917,2]
[369770813,1751722267262,-532.9,0.00021917,2]
[369770814,1751722267271,-460.0,0.00021917,2]
[369770815,1751722267280,-337.55814958,0.00021917,2]
[369770816,1751722267292,-677.10053554,0.00021917,2]
[369770817,1751722267526,-319.85997317,0.00019178,2]
[369770818,1751722267538,-140.14002683,0.00019178,2]
[369770819,1751722267550,-460.0,0.00019178,2]
[369770820,1751722267601,-460.0,0.00019178,2]
[369770821,1751722267610,-460.0,0.00019452,2]
[369770822,1751722267621,-460.0,0.00019452,2]
[369770823,1751722267630,-199.25997317,0.00019452,2]
[369770824,1751722267807,-460.0,0.00019178,2]
[369770825,1751722267817,-460.0,0.00019178,2]
[369770826,1751722267826,-87.28553574,0.00019452,2]
[369770827,1751722267838,-173.45449109,0.00019452,2]
[369770828,1751722267847,-460.0,0.00019452,2]
[369770829,1751722267856,-460.0,0.00019726,2]
[369770830,1751722267866,-460.0,0.00019726,2]
[369770831,1751722267875,-460.0,0.00019726,2]
[369770832,1751722267885,-155.15941754,0.00019973,2]
[369770833,1751722267894,-19.85393324,0.0002,2]
[369770834,1751722267906,-440.14606676,0.0002,2]
[369770835,1751722267915,-302.59995568,0.0002,2]
[369770836,1751722267927,-157.40004432,0.0002,2]
[369770837,1751722267936,-460.0,0.0002,2]
[369770838,1751722267946,-460.0,0.00020273,2]
[369770839,1751722267955,-318.87,0.00020273,2]
[369770840,1751722267964,-460.0,0.00020273,2]
[369770841,1751722267973,-460.0,0.00020547,2]
[369770842,1751722267982,-460.0,0.00021369,2]
[369770843,1751722267991,-460.0,0.00021643,2]
[369770844,1751722268001,-5231.34131488,0.00021917,2]
[369770845,1751722268012,-460.0,0.00021917,2]
[369770846,1751722268022,-512.79,0.00021917,2]
[369770847,1751722268031,-460.0,0.00021917,2]
[369770848,1751722268041,-460.0,0.00021917,2]
[369770849,1751722268050,-460.0,0.00021917,2]
[369770850,1751722268060,-8650.73,0.00021917,2]
[369770851,1751722268069,-923.59,0.00021917,2]
[369770852,1751722268078,-460.0,0.00021917,2]
[369770853,1751722268088,-644.54,0.00021917,2]
[369770854,1751722268098,-1436.31,0.00021917,2]
[369770855,1751722268107,-515.17,0.00021917,2]
[369770856,1751722268116,-460.0,0.00021917,2]
[369770857,1751722268126,-460.0,0.00021917,2]
[369770858,1751722268135,-2109.23,0.00021917,2]
[369770859,1751722268145,-1988.63,0.00021917,2]
[369770860,1751722268155,-460.0,0.00021917,2]
[369770861,1751722268166,-460.0,0.00021917,2]
[369770862,1751722268175,-1388.11,0.00021917,2]
[369770863,1751722268186,-598.52944191,0.00021917,2]
[369770864,1751722268196,-460.0,0.00021917,2]
[369770865,1751722268205,-460.0,0.00021917,2]
[369770866,1751722268215,-460.0,0.00021917,2]
[369770867,1751722268224,-463.27,0.00021917,2]
[369770868,1751722268234,-1528.0803777,0.00021917,2]
[369770869,1751722268354,-924.34246844,0.00018986,2]
[369770870,1751722268366,-342.4914134,0.00018986,2]
[369770871,1751722268375,-460.0,0.00019178,2]
[369770872,1751722268385,-460.0,0.00019452,2]
[369770873,1751722268395,-460.0,0.00019452,2]
[369770874,1751722268407,-460.0,0.00019726,2]
[369770875,1751722268417,-460.0,0.00019726,2]
[369770876,1751722268427,-460.0,0.0002,2]
[369770877,1751722268437,-460.0,0.0002,2]
[369770878,1751722268447,-460.0,0.00020273,2]
[369770879,1751722268457,-460.0,0.00020547,2]
[369770880,1751722268466,-460.0,0.00020821,2]
[369770881,1751722268475,-460.0,0.00021095,2]
[369770882,1751722268484,-460.0,0.00021369,2]
[369770883,1751722268493,-460.0,0.00021643,2]
[369770884,1751722268503,-6846.2996223,0.00021917,2]
[369770885,1751722268512,-2962.19,0.00021917,2]
[369770886,1751722268521,-460.0,0.00021917,2]
[369770887,1751722268531,-1198.59,0.00021917,2]
[369770888,1751722268540,-460.0,0.00021917,2]
[369770889,1751722268551,-460.0,0.00021917,2]
[369770890,1751722268562,-776.97,0.00021917,2]
[369770891,1751722268573,-460.0,0.00021917,2]
[369770892,1751722268583,-460.0,0.00021917,2]
[369770893,1751722268594,-460.0,0.00021917,2]
[369770894,1751722268605,-579.55,0.00021917,2]
[369770895,1751722268615,-182.13555427,0.00021917,2]
[369770896,1751722268625,-555.84,0.00021917,2]
[369770897,1751722268635,-2095.61,0.00021917,2]
[369770898,1751722268645,-460.0,0.00021917,2]
[369770899,1751722268654,-460.0,0.00021917,2]
[369770900,1751722268663,-460.0,0.00021917,2]
[369770901,1751722268673,-1898.56,0.00021917,2]
[369770902,1751722268682,-460.0,0.00021917,2]
[369770903,1751722268692,-893.21,0.00021917,2]
[369770904,1751722268702,-4007.99,0.00021917,2]
[369770905,1751722268711,-460.0,0.00021917,2]
[369770906,1751722268720,-5012.7,0.00021917,2]
[369770907,1751722268731,-460.0,0.00021917,2]
[369770908,1751722268740,-460.0,0.00021917,2]
[369770909,1751722268750,-615.94,0.00021917,2]
[369770910,1751722268759,-951.9,0.00021917,2]
[369770911,1751722268769,-460.0,0.00021917,2]
[369770912,1751722268778,-460.0,0.00021917,2]
[369770913,1751722268787,-460.0,0.00021917,2]
[369770914,1751722268797,-537.54,0.00021917,2]
[369770915,1751722268807,-6536.21,0.00021917,2]
[369770916,1751722268816,-460.0,0.00021917,2]
[369770917,1751722268826,-460.0,0.00021917,2]
[369770918,1751722268836,-1096.58,0.00021917,2]
[369770919,1751722268845,-460.0,0.00021917,2]
[369770920,1751722268856,-1375.12,0.00021917,2]
[369770921,1751722268865,-482.57,0.00021917,2]
[369770922,1751722268875,-941.2,0.00021917,2]
[369770923,1751722268884,-541.54,0.00021917,2]
[369770924,1751722268895,-1263.3,0.00021917,2]
[369770925,1751722268904,-1157.82,0.00021917,2]
[369770926,1751722268914,-460.0,0.00021917,2]
[369770927,1751722268924,-460.0,0.00021917,2]
[369770928,1751722268934,-460.0,0.00021917,2]
[369770929,1751722268943,-3019.38,0.00021917,2]
[369770930,1751722268952,-1058.72,0.00021917,2]
[369770931,1751722268961,-460.0,0.00021917,2]
[369770932,1751722268970,-512.71,0.00021917,2]
[369770933,1751722268979,-460.0,0.00021917,2]
[369770934,1751722268997,-2032.43,0.00021917,2]
[369770935,1751722269008,-585.28,0.00021917,2]
[369770936,1751722269018,-2923.56,0.00021917,2]
[369770937,1751722269029,-460.0,0.00021917,2]
[369770938,1751722269038,-652.84,0.00021917,2]
[369770939,1751722269049,-540.09,0.00021917,2]
[369770940,1751722269059,-1505.83,0.00021917,2]
[369770941,1751722269069,-1403.04,0.00021917,2]
[369770942,1751722269079,-460.0,0.00021917,2]
[369770943,1751722269090,-641.04,0.00021917,2]
[369770944,1751722269100,-1468.55,0.00021917,2]
[369770945,1751722269110,-460.0,0.00021917,2]
[369770946,1751722269122,-3916.41,0.00021917,2]
[369770947,1751722269133,-648.75,0.00021917,2]
[369770948,1751722269144,-828.08,0.00021917,2]
[369770949,1751722269155,-670.49,0.00021917,2]
[369770950,1751722269166,-510.5,0.00021917,2]